bitfinex-derivatives/quotes_SOLF0:USTF0_20250216
["timestamp","ask_amount","ask_price","bid_price","bid_amount"]
[1739673558746,0.03302562,194.34,194.32,14.31211449]
[1739673559448,0.03302562,194.34,194.3,14.34850756]
[1739673559648,0.03302562,194.34,194.3,9.20280756]
[1739673560145,0.03302562,194.34,194.3,14.34850756]
[1739673560346,0.03302562,194.34,194.3,9.20280756]
[1739673562047,0.03302562,194.34,194.31,5.1456]
[1739673562447,0.03302562,194.34,194.3,9.20280756]
[1739673563447,5.17782562,194.34,194.3,14.34850756]
[1739673563850,0.03302562,194.34,194.3,9.20280756]
[1739673564050,0.03302562,194.34,194.31,5.1455]
[1739673564552,5.1453,194.33,194.3,9.20280756]
[1739673565248,5.1454,194.32,194.3,0.03599307]
[1739673565447,9.16681449,194.33,194.3,0.03599307]
[1739673567056,5.1456,194.31,194.3,0.03599307]
[1739673579068,5.1454,194.32,194.3,0.03599307]
[1739673579975,0.03302562,194.34,194.3,9.20280756]
[1739673580472,5.1451,194.33,194.3,0.03599307]
[1739673580970,0.03302562,194.34,194.3,0.03599307]
[1739673581171,5.17792562,194.34,194.3,0.03599307]
[1739673582369,0.03302562,194.34,194.3,0.03599307]
[1739673582574,9.16681449,194.33,194.3,0.03599307]
[1739673583276,0.03302562,194.34,194.3,9.20280756]
[1739673583672,0.03302562,194.34,194.32,9.16681449]
[1739673584174,0.03302562,194.34,194.33,5.1451]
[1739673586276,0.03302562,194.34,194.32,14.31211449]
[1739673587175,0.03302562,194.34,194.32,5.1453]
[1739673587576,0.03302562,194.34,194.3,0.03599307]
[1739673589579,14.31211449,194.33,194.3,0.03599307]
[1739673589772,9.16681449,194.33,194.3,0.03599307]
[1739673590172,5.1456,194.32,194.3,0.03599307]
[1739673592584,14.31241449,194.31,194.3,0.03599307]
[1739673595186,14.31241449,194.31,194.17,1.6156]
[1739673595187,9.16681449,194.31,194.2,9.16681449]
[1739673595382,9.16681449,194.25,194.2,9.16681449]
[1739673595583,14.31411449,194.25,194.2,14.31531449]
[1739673596182,0.03272093,194.24,194.21,0.03288689]
[1739673597684,0.03272093,194.24,194.22,5.148]
[1739673597886,0.03272093,194.24,194.22,9.16681449]
[1739673598188,0.03272093,194.24,194.23,5.1477]
[1739673600391,5.1454,194.32,194.28,5.1463]
[1739673600591,5.1454,194.32,194.26,9.16681449]
[1739673600993,203.80481449,194.33,194.27,5.1467]
[1739673601290,5.1456,194.31,194.27,5.1467]
[1739673601482,5.1456,194.31,194.28,0.03856208]
[1739673601993,0.03468433,194.32,194.28,0.03856208]
[1739673602192,5.18008433,194.32,194.28,0.03856208]
[1739673602887,0.03468433,194.32,194.29,5.146]
[1739673604293,0.03468433,194.32,194.28,0.03856208]
[1739673604493,0.03468433,194.32,194.28,5.18476208]
[1739673605296,5.18008433,194.32,194.28,0.03856208]
[1739673605592,9.16681449,194.3,194.28,0.03856208]
[1739673606199,5.1462,194.29,194.28,0.03856208]
[1739673608195,9.16681449,194.3,194.28,0.03856208]
[1739673608400,9.16681449,194.27,194.2,9.16681449]
[1739673608898,9.16681449,194.25,194.18,9.16681449]
[1739673609498,5.18293833,194.23,194.2,0.03892942]
[1739673609796,14.34975282,194.23,194.2,0.03892942]
[1739673611605,9.20175282,194.23,194.2,0.03892942]
[1739673612303,14.34955282,194.23,194.2,0.03892942]
[1739673612499,9.20175282,194.23,194.2,0.03892942]
[1739673612799,14.31511449,194.21,194.2,0.03892942]
[1739673613904,14.31511449,194.21,194.12,9.16681449]
[1739673614104,9.16681449,194.19,194.12,9.16681449]
[1739673614699,9.16681449,194.19,194.15,5.1496]
[1739673615096,0.03909325,194.19,194.15,0.03289998]
[1739673615396,0.03909325,194.19,194.17,5.1492]
[1739673616001,0.03909325,194.19,194.16,5.1496]
[1739673616202,0.03909325,194.19,194.15,0.03289998]
[1739673616701,0.03909325,194.19,194.15,5.18269998]
[1739673616906,9.20590774,194.19,194.15,5.18269998]
[1739673618103,9.20590774,194.19,194.15,0.03289998]
[1739673619002,5.1493,194.18,194.15,0.03289998]
[1739673621003,9.20590774,194.19,194.15,0.03289998]
[1739673621207,14.35470774,194.19,194.15,0.03289998]
[1739673622810,0.03909325,194.19,194.17,5.1491]
[1739673623009,0.03909325,194.19,194.15,0.03289998]
[1739673623709,0.03909325,194.19,194.15,5.18249998]
[1739673625010,9.20590774,194.19,194.15,0.03289998]
[1739673625206,14.35480774,194.19,194.15,0.03289998]
[1739673627407,9.20590774,194.19,194.15,5.18259998]
[1739673630112,5.1492,194.18,194.15,0.03289998]
[1739673631011,9.16681449,194.17,194.15,0.03289998]
[1739673632001,5.1496,194.16,194.15,0.03289998]
[1739673635609,9.16681449,194.17,194.15,0.03289998]
[1739673636611,14.35480774,194.19,194.15,0.03289998]
[1739673637716,5.1491,194.18,194.15,0.03289998]
[1739673639515,5.1494,194.17,194.15,0.03289998]
[1739673640015,14.31621449,194.17,194.15,0.03289998]
[1739673643524,9.16681449,194.17,194.15,0.03289998]
[1739673643725,5.1496,194.16,194.15,0.03289998]
[1739673648329,5.1506,194.13,194.08,58.70712562]
[1739673648531,9.16681449,194.12,194.08,58.70712562]
[1739673649325,9.20146258,194.12,194.08,58.70712562]
[1739673650927,9.16681449,194.1,194.08,53.55542562]
[1739673652333,9.16681449,194.1,194.02,9.16681449]
[1739673652630,9.16681449,194.08,194.02,9.16681449]
[1739673652829,9.20404889,194.08,194.02,9.16681449]
[1739673653030,9.20404889,194.08,194.04,5.1527]
[1739673653533,9.16681449,194.06,194.0,9.16681449]
[1739673653923,0.03405604,194.05,194.0,9.16681449]
[1739673655335,0.03405604,194.05,194.02,5.1532]
[1739673656332,0.03405604,194.05,194.0,9.16681449]
[1739673656532,0.03405604,194.05,194.01,5.1535]
[1739673656736,0.03405604,194.05,193.98,9.16681449]
[1739673660134,0.03405604,194.05,194.03,5.1529]
[1739673661538,0.03405604,194.05,194.02,5.1533]
[1739673662237,0.03405604,194.05,194.03,5.153]
[1739673667237,9.16681449,194.04,193.98,9.16681449]
[1739673668029,14.31961449,194.04,194.0,5.1538]
[1739673669037,14.31961449,194.04,193.99,5.154]
[1739673669438,9.16681449,194.02,193.99,5.154]
[1739673669638,9.16681449,194.02,193.98,5.1543]
[1739673670141,9.20376134,194.02,193.98,5.1543]
[1739673670338,9.20376134,194.02,193.96,9.16681449]
[1739673670540,9.20376134,194.02,193.99,5.1541]
[1739673674148,14.32061449,194.0,193.96,5.1547]
[1739673674442,14.32061449,194.0,193.94,9.16681449]
[1739673674845,9.16681449,194.0,193.95,5.155]
[1739673675042,5.1542,193.99,193.95,5.155]
[1739673675446,9.16681449,194.0,193.95,5.155]
[1739673675637,5.1544,193.98,193.95,5.155]
[1739673676045,5.1542,193.99,193.95,5.155]
[1739673676442,9.16681449,194.0,193.95,5.155]
[1739673676638,9.16681449,193.98,193.92,9.16681449]
[1739673676945,9.16681449,194.0,193.94,9.16681449]
[1739673677339,0.03263089,193.99,193.96,5.1547]
[1739673677837,0.03263089,193.99,193.97,5.1546]
[1739673679454,0.03263089,193.99,193.98,5.1544]
[1739673679749,0.03263089,193.99,193.98,14.32121449]
[1739673681751,0.03263089,193.99,193.98,5.1544]
[1739673699560,0.03263089,193.99,193.98,14.32121449]
[1739673701655,9.16681449,194.04,193.98,14.32121449]
[1739673701656,9.16681449,194.08,193.98,9.16681449]
[1739673701857,9.16681449,194.1,194.03,9.16681449]
[1739673702253,9.16681449,194.1,194.07,5.1518]
[1739673702559,9.16681449,194.1,194.03,9.16681449]
[1739673702752,9.16681449,194.1,194.07,5.1519]
[1739673702958,0.034338,194.08,194.07,5.1519]
[1739673707066,9.20115249,194.08,194.05,0.03263089]
[1739673707262,9.16681449,194.06,194.05,0.03263089]
[1739673711372,14.35295249,194.08,194.05,0.03263089]
[1739673711567,9.20115249,194.08,194.05,5.18493089]
[1739673711767,9.20115249,194.08,194.05,0.03263089]
[1739673712274,14.35305249,194.08,194.05,0.03263089]
[1739673716071,14.35305249,194.08,194.05,5.18513089]
[1739673716369,9.20115249,194.08,194.05,5.18513089]
[1739673717573,14.35285249,194.08,194.05,0.03263089]
[1739673720476,9.16681449,194.06,194.05,0.03263089]
[1739673720783,9.16681449,194.06,193.97,9.16681449]
[1739673720982,9.16681449,194.03,193.97,9.16681449]
[1739673721475,9.16681449,194.03,193.99,5.1541]
[1739673721476,14.31991449,194.03,193.99,5.1541]
[1739673722077,14.35657621,194.03,193.99,5.1541]
[1739673723780,9.20347621,194.03,193.97,9.16681449]
[1739673723984,0.03666172,194.03,193.99,9.16681449]
[1739673724185,9.16681449,194.05,193.99,9.16681449]
[1739673724390,0.03439467,194.03,194.01,5.1534]
[1739673724887,0.03439467,194.03,194.01,9.16681449]
[1739673725785,0.03439467,194.03,194.02,5.1533]
[1739673749398,9.16681449,194.15,194.01,9.16681449]
[1739673749592,9.16681449,194.15,194.09,5.1512]
[1739673749796,9.16681449,194.13,194.06,9.16681449]
[1739673750001,14.31741449,194.13,194.08,5.1517]
[1739673750194,9.16681449,194.13,194.08,5.1517]
[1739673750595,0.03909706,194.12,194.09,0.03439467]
[1739673751200,9.16681449,194.11,194.09,0.03439467]
[1739673752101,14.31781449,194.11,194.09,0.03439467]
[1739673754506,0.03909706,194.12,194.09,0.03439467]
[1739673756997,0.03909706,194.12,194.11,5.1509]
[1739673764007,0.03909706,194.12,194.09,0.03439467]
[1739673764608,0.03909706,194.12,194.1,5.1511]
[1739673765911,0.03909706,194.12,194.09,0.03439467]
[1739673766113,0.03909706,194.12,194.11,5.1509]
[1739673767014,0.03909706,194.12,194.09,0.03439467]
[1739673767213,0.03909706,194.12,194.09,5.18569467]
[1739673768212,0.03909706,194.12,194.1,5.1511]
[1739673769014,5.18979706,194.12,194.09,5.18579467]
[1739673769413,0.03909706,194.12,194.09,5.18579467]
[1739673770718,0.03909706,194.12,194.1,5.1511]
[1739673771820,0.03909706,194.12,194.09,0.03439467]
[1739673773019,5.151,194.11,194.09,0.03439467]
[1739673774520,0.03909706,194.12,194.09,0.03439467]
[1739673774720,0.03909706,194.12,194.1,5.1512]
[1739673776915,0.03909706,194.12,194.11,5.1509]
[1739673777120,0.03909706,194.12,194.11,14.31771449]
[1739673781521,9.706e-05,194.12,194.11,14.31771449]
[1739673785524,9.706e-05,194.12,194.11,5.1509]
[1739673786622,9.706e-05,194.12,194.1,5.1511]
[1739673787326,9.706e-05,194.12,194.09,9.20120916]
[1739673789022,9.706e-05,194.12,194.11,5.1509]
[1739673790228,9.706e-05,194.12,194.09,0.03439467]
[1739673790428,9.16691155,194.12,194.09,0.03439467]
[1739673791130,5.151,194.11,194.09,0.03439467]
[1739673791424,9.706e-05,194.12,194.09,0.03439467]
[1739673792026,9.706e-05,194.12,194.09,5.18559467]
[1739673793627,9.706e-05,194.12,194.09,0.03439467]
[1739673793927,9.706e-05,194.12,194.1,5.1511]
[1739673794722,9.706e-05,194.12,194.09,0.03439467]
[1739673794919,9.706e-05,194.12,194.09,9.20120916]
[1739673795929,9.706e-05,194.12,194.1,5.1509]
[1739673796230,9.706e-05,194.12,194.09,9.20120916]
[1739673796731,9.706e-05,194.12,194.1,5.1511]
[1739673805037,5.15079706,194.12,194.09,0.03439467]
[1739673805938,9.706e-05,194.12,194.09,0.03439467]
[1739673806138,5.151,194.11,194.09,0.03439467]
[1739673810142,5.1512,194.1,194.09,0.03439467]
[1739673811139,14.31801449,194.1,194.09,0.03439467]
[1739673812939,5.1512,194.1,194.09,0.03439467]
[1739673814845,5.151,194.11,194.09,0.03439467]
[1739673815745,5.1512,194.1,194.09,0.03439467]
[1739673815947,14.31801449,194.1,194.09,0.03439467]
[1739673824149,5.1522,194.07,194.03,5.1528]
[1739673824351,9.16681449,194.05,193.99,9.16681449]
[1739673825253,0.03358151,194.04,194.0,0.03490352]
[1739673825847,5.18658151,194.04,194.0,5.18850352]
[1739673826051,0.03358151,194.04,194.0,0.03490352]
[1739673826659,0.03358151,194.04,194.01,5.1534]
[1739673827660,0.03358151,194.04,194.02,5.1533]
[1739673831054,0.03358151,194.04,194.03,5.153]
[1739673832866,0.03358151,194.04,194.03,14.31981449]
[1739673834462,8.151e-05,194.04,194.03,14.31981449]
[1739673879204,9.16681449,194.15,194.1,5.151]
[1739673879400,9.16681449,194.15,194.09,9.16681449]
[1739673880312,0.03826056,194.14,194.1,5.18925271]
[1739673882314,0.03826056,194.14,194.11,5.1509]
[1739673884017,0.03826056,194.14,194.12,5.1506]
[1739673886016,0.03826056,194.14,194.1,0.03815271]
[1739673887017,0.03826056,194.14,194.12,5.1505]
[1739673887313,0.03826056,194.14,194.1,0.03815271]
[1739673888218,0.03826056,194.14,194.13,5.1504]
[1739673899622,0.03826056,194.14,194.11,9.16681449]
[1739673899922,0.03826056,194.14,194.12,5.1505]
[1739673902924,0.03826056,194.14,194.1,0.03815271]
[1739673903824,5.18846056,194.14,194.1,5.18905271]
[1739673904322,0.03826056,194.14,194.11,5.1508]
[1739673904727,0.03826056,194.14,194.1,0.03815271]
[1739673905025,0.03826056,194.14,194.13,5.1504]
[1739673905227,0.03826056,194.14,194.13,14.31721449]
[1739673908631,0.03826056,194.14,194.11,9.16681449]
[1739673910037,0.03826056,194.14,194.12,5.1505]
[1739673914438,0.03826056,194.14,194.13,9.16681449]
[1739673914637,0.03826056,194.14,194.13,14.31721449]
[1739673919537,6.056e-05,194.14,194.13,14.31721449]
[1739673922136,9.16681449,194.25,194.21,5.1481]
[1739673923235,9.20480691,194.25,194.21,5.18748668]
[1739673924043,9.20480691,194.25,194.21,0.03938668]
[1739673924744,5.1477,194.24,194.21,0.03938668]
[1739673925242,9.20480691,194.25,194.21,0.03938668]
[1739673925439,14.35210691,194.25,194.21,0.03938668]
[1739673926745,9.20480691,194.25,194.21,0.03938668]
[1739673926945,9.20480691,194.25,194.21,5.18738668]
[1739673927646,9.20480691,194.25,194.22,5.1479]
[1739673929039,9.20480691,194.25,194.21,0.03938668]
[1739673929245,5.1475,194.24,194.21,5.18758668]
[1739673929545,9.20480691,194.25,194.21,5.18758668]
[1739673929745,14.35210691,194.25,194.22,5.148]
[1739673930147,9.20480691,194.25,194.21,0.03938668]
[1739673930947,9.16681449,194.22,194.21,0.03938668]
[1739673931349,14.31481449,194.22,194.21,0.03938668]
[1739673931747,9.16681449,194.22,194.14,9.16681449]
[1739673931942,9.16681449,194.18,194.12,9.16681449]
[1739673932148,9.16681449,194.16,194.08,9.16681449]
[1739673932343,5.1504,194.13,194.08,14.31851449]
[1739673932539,9.16681449,194.12,194.06,9.16681449]
[1739673932748,9.16681449,194.12,194.04,9.16681449]
[1739673932942,0.03694042,194.11,194.07,0.03658904]
[1739673933750,0.03694042,194.11,194.07,5.18848904]
[1739673937853,0.03694042,194.11,194.07,0.03658904]
[1739673940155,0.03694042,194.11,194.07,5.18848904]
[1739673942657,14.31801449,194.1,194.07,0.03658904]
[1739673943456,5.1515,194.09,194.07,0.03658904]
[1739673944556,9.16681449,194.1,194.07,0.03658904]
[1739673944768,14.31851449,194.08,194.07,0.03658904]
[1739673946265,9.16681449,194.08,194.0,9.16681449]
[1739673946467,9.16681449,194.05,194.0,9.16681449]
[1739673947363,0.03432803,194.04,194.01,0.03360007]
[1739673948671,0.03432803,194.04,194.01,5.18710007]
[1739673948965,0.03432803,194.04,194.01,0.03360007]
[1739673949175,0.03432803,194.04,194.02,5.1533]
[1739673953067,0.03432803,194.04,194.01,5.18710007]
[1739673953273,0.03432803,194.04,194.02,9.16681449]
[1739673953571,0.03432803,194.04,194.02,5.1531]
[1739673953969,0.03432803,194.04,194.01,0.03360007]
[1739673954171,0.03432803,194.04,194.03,5.153]
[1739673966973,0.03432803,194.04,194.01,0.03360007]
[1739673968783,9.16681449,194.03,194.01,0.03360007]
[1739673969477,14.31991449,194.03,194.01,0.03360007]
[1739673971081,5.1533,194.02,194.01,0.03360007]
[1739673975279,10.76761449,194.03,194.01,0.03360007]
[1739673975480,15.92071449,194.03,194.01,0.03360007]
[1739673975881,5.1533,194.02,194.01,0.03360007]
[1739673984591,14.31991449,194.03,194.01,0.03360007]
[1739673984893,9.16681449,194.03,194.01,0.03360007]
[1739673985791,5.1533,194.02,194.01,0.03360007]
[1739673987287,0.03432803,194.04,194.02,5.1533]
[1739673987492,0.03432803,194.04,194.01,0.03360007]
[1739673988391,0.03432803,194.04,194.02,5.1533]
[1739673988693,0.03432803,194.04,194.01,0.03360007]
[1739673988885,5.18722803,194.04,194.01,5.18710007]
[1739673989295,5.18722803,194.04,194.01,0.03360007]
[1739673990495,5.1533,194.02,194.01,0.03360007]
[1739673991696,5.1533,194.02,194.01,7e-08]
[1739673991993,9.16681449,194.02,193.93,53.59200967]
[1739673992192,9.16681449,193.98,193.93,53.59200967]
[1739673992794,9.16681449,193.98,193.9,9.16681449]
[1739673992992,5.1549,193.96,193.91,5.156]
[1739673993496,14.32171449,193.96,193.91,5.156]
[1739673994498,9.16681449,193.96,193.91,5.156]
[1739673995397,9.16681449,193.96,193.93,5.1554]
[1739673995696,0.03471728,193.97,193.93,5.1554]
[1739673996496,0.03471728,193.97,193.9,9.16681449]
[1739673996695,0.03471728,193.97,193.92,9.16681449]
[1739673997399,0.03471728,193.97,193.94,5.1554]
[1739673997701,9.16681449,193.96,193.9,9.16681449]
[1739673997891,14.32191449,193.96,193.92,5.156]
[1739673998094,0.03731893,193.95,193.9,9.16681449]
[1739673998295,9.16681449,193.96,193.9,9.16681449]
[1739673998492,0.03519067,193.94,193.9,9.16681449]
[1739673999100,0.03519067,193.94,193.91,5.156]
[1739673999607,0.03519067,193.94,193.9,9.16681449]
[1739673999802,0.03519067,193.94,193.92,5.1559]
[1739674004505,0.03519067,193.94,193.9,14.32311449]
[1739674004907,0.03519067,193.94,193.9,9.16681449]
[1739674005402,5.19059067,193.94,193.88,9.16681449]
[1739674005703,9.16681449,193.94,193.86,9.16681449]
[1739674005903,5.1565,193.9,193.85,5.1578]
[1739674006101,9.16681449,193.9,193.84,9.16681449]
[1739674006608,0.03539578,193.89,193.84,9.16681449]
[1739674007007,5.19239578,193.89,193.84,14.32481449]
[1739674007310,0.03539578,193.89,193.84,9.16681449]
[1739674007904,0.03539578,193.89,193.84,14.32481449]
[1739674008304,0.03539578,193.89,193.84,9.16681449]
[1739674008511,0.03539578,193.89,193.82,9.16681449]
[1739674009405,0.03539578,193.89,193.85,5.1578]
[1739674010010,0.03539578,193.89,193.86,5.1575]
[1739674012017,0.03539578,193.89,193.87,5.1573]
[1739674013215,0.03539578,193.89,193.88,14.32381449]
[1739674013513,0.03539578,193.89,193.88,5.157]
[1739674014718,0.03539578,193.89,193.88,14.32381449]
[1739674016216,9.16681449,193.94,193.88,9.16681449]
[1739674016419,9.16681449,193.94,193.93,5.1557]
[1739674016820,9.16681449,193.94,193.88,9.16681449]
[1739674017418,0.03756186,193.93,193.89,0.03543683]
[1739674018121,0.03756186,193.93,193.91,5.156]
[1739674018921,0.03756186,193.93,193.89,0.03543683]
[1739674019219,0.03756186,193.93,193.9,5.1564]
[1739674019616,0.03756186,193.93,193.89,0.03543683]
[1739674019821,0.03756186,193.93,193.91,5.1562]
[1739674021023,0.03756186,193.93,193.89,0.03543683]
[1739674022121,0.03756186,193.93,193.92,5.156]
[1739674022524,0.03756186,193.93,193.89,0.03543683]
[1739674022731,0.03756186,193.93,193.91,5.1561]
[1739674023031,0.03756186,193.93,193.89,0.03543683]
[1739674023430,0.03756186,193.93,193.92,5.156]
[1739674027036,0.03756186,193.93,193.92,14.32281449]
[1739674035840,6.186e-05,193.93,193.92,14.32281449]
[1739674051058,9.16681449,194.02,193.99,5.1539]
[1739674051460,9.16681449,194.02,193.97,9.16681449]
[1739674052265,0.03326119,194.01,193.98,0.03327608]
[1739674053164,0.03326119,194.01,193.99,5.1539]
[1739674054064,0.03326119,194.01,193.98,0.03327608]
[1739674054265,0.03326119,194.01,194.0,5.1538]
[1739674069779,0.03326119,194.01,193.99,14.32091449]
[1739674070484,0.03326119,194.01,194.0,5.1538]
[1739674074079,9.16681449,194.08,193.99,9.16681449]
[1739674074285,14.31821449,194.1,194.04,5.1526]
[1739674075380,0.03657101,194.09,194.05,0.0342832]
[1739674078589,4.751,194.16,194.08,9.16681449]
[1739674078786,13.91781449,194.16,194.09,9.16681449]
[1739674079081,9.16681449,194.14,194.07,14.31881449]
[1739674079986,9.2003473,194.12,194.09,0.03543035]
[1739674080681,0.03353281,194.12,194.09,0.03543035]
[1739674082188,0.03353281,194.12,194.09,5.18663035]
[1739674083882,0.03353281,194.12,194.1,5.151]
[1739674084289,0.03353281,194.12,194.09,0.03543035]
[1739674084485,0.03353281,194.12,194.11,5.1509]
[1739674086584,0.03353281,194.12,194.11,14.31771449]
[1739674104305,0.03353281,194.12,194.09,14.35364484]
[1739674104501,0.03353281,194.12,194.09,9.20224484]
[1739674105709,0.03353281,194.12,194.1,5.1511]
[1739674106311,0.03353281,194.12,194.09,9.20224484]
[1739674106511,0.03353281,194.12,194.09,14.35364484]
[1739674107311,9.16681449,194.1,193.95,9.16681449]
[1739674107506,9.16681449,193.99,193.94,28.45226834]
[1739674107710,9.16681449,193.97,193.94,28.45226834]
[1739674108408,9.20436865,193.97,193.94,28.48708123]
[1739674109518,0.03755416,193.97,193.94,28.48708123]
[1739674109716,0.03755416,193.97,193.94,0.03481289]
[1739674110807,9.20436865,193.97,193.94,0.03481289]
[1739674111112,9.16681449,193.95,193.94,0.03481289]
[1739674114521,9.16681449,193.95,193.86,5.1573]
[1739674114815,9.16681449,193.9,193.84,9.16681449]
[1739674115220,9.16681449,193.9,193.85,5.1578]
[1739674115717,0.03722079,193.89,193.86,0.03455022]
[1739674119218,0.03722079,193.89,193.86,5.19195022]
[1739674119910,0.03722079,193.89,193.88,14.32381449]
[1739674123222,2.079e-05,193.89,193.88,14.32381449]
[1739674123824,9.16681449,194.06,193.88,9.16681449]
[1739674124029,9.16681449,194.06,194.0,9.16681449]
[1739674124631,9.16681449,194.06,194.0,14.32061449]
[1739674124819,9.16681449,194.01,193.91,9.16681449]
[1739674125020,4.682,194.07,194.01,0.03729637]
[1739674125221,5.1536,194.01,193.93,5.1557]
[1739674125421,9.20101888,193.98,193.87,3.2602]
[1739674125730,0.03420439,193.98,193.94,9.16681449]
[1739674126126,0.03420439,193.98,193.96,5.1547]
[1739674126325,0.03420439,193.98,193.96,9.16681449]
[1739674128628,0.03420439,193.98,193.96,14.32171449]
[1739674129632,0.03420439,193.98,193.96,9.16681449]
[1739674129833,0.03420439,193.98,193.94,9.19972083]
[1739674131031,0.03420439,193.98,193.95,5.1549]
[1739674132535,0.03420439,193.98,193.94,14.35512083]
[1739674132728,193.0,194.14,193.96,9.16681449]
[1739674132923,193.0,194.14,193.89,115.7]
[1739674132924,9.16681449,194.12,194.03,9.16681449]
[1739674133131,9.16681449,194.1,194.03,9.16681449]
[1739674133331,9.16681449,194.1,194.01,9.16681449]
[1739674133933,0.03718811,194.07,194.04,0.03425837]
[1739674138740,9.16681449,194.06,193.91,9.16681449]
[1739674138934,9.16681449,193.98,193.91,9.16681449]
[1739674139133,9.16681449,193.98,193.95,5.1551]
[1739674139838,9.20377194,193.98,193.95,5.18942786]
[1739674142430,0.03695745,193.98,193.95,5.18942786]
[1739674144343,0.03695745,193.98,193.95,0.03432786]
[1739674146039,0.03695745,193.98,193.95,5.18942786]
[1739674146239,9.16681449,193.96,193.95,0.03432786]
[1739674147141,9.20377194,193.98,193.95,0.03432786]
[1739674148743,9.16681449,193.96,193.95,0.03432786]
[1739674149637,9.16681449,193.96,193.86,9.16681449]
[1739674149838,9.16681449,193.93,193.86,9.16681449]
[1739674150847,0.03250096,193.91,193.88,0.03935546]
[1739674151043,0.03250096,193.91,193.88,5.19615546]
[1739674151548,0.03250096,193.91,193.88,0.03935546]
[1739674154445,0.03250096,193.91,193.88,5.19635546]
[1739674154646,0.03250096,193.91,193.88,0.03935546]
[1739674154843,0.03250096,193.91,193.9,9.16681449]
[1739674155049,0.03250096,193.91,193.9,14.32331449]
[1739674158154,193.0,194.03,193.9,9.16681449]
[1739674158453,193.0,194.03,193.96,9.16681449]
[1739674159055,202.16681449,194.03,193.97,5.1544]
[1739674159257,0.03321279,194.02,193.98,0.03301575]
[1739674159657,0.03321279,194.02,193.98,5.18721575]
[1739674160056,9.16681449,194.01,193.98,0.03301575]
[1739674160652,0.03321279,194.02,193.98,0.03301575]
[1739674160853,0.03321279,194.02,193.98,9.19983024]
[1739674161057,0.03321279,194.02,193.98,0.03301575]
[1739674162158,0.03321279,194.02,193.98,5.18711575]
[1739674162658,9.16681449,194.01,193.98,0.03301575]
[1739674163362,9.16681449,193.99,193.98,0.03301575]
[1739674165063,9.16681449,193.99,193.85,1.5891]
[1739674165263,9.16681449,193.9,193.85,1.5891]
[1739674165466,9.16681449,193.9,193.87,5.157]
[1739674166264,9.2027676,193.9,193.87,0.03792157]
[1739674166470,9.16681449,193.88,193.87,0.03792157]
[1739674167661,0.03595311,193.9,193.87,0.03792157]
[1739674167861,5.157,193.88,193.87,0.03792157]
[1739674170570,5.157,193.88,193.78,15.97339602]
[1739674170767,0.03595311,193.9,193.78,15.97339602]
[1739674170971,5.1573,193.87,193.78,15.97339602]
[1739674171670,5.157,193.89,193.78,15.97339602]
[1739674171870,0.03452024,193.84,193.78,15.97339602]
[1739674172373,0.03452024,193.84,193.83,5.1584]
[1739674173670,0.03452024,193.84,193.82,5.1585]
[1739674175675,0.03452024,193.84,193.83,5.1584]
[1739674176979,0.03452024,193.84,193.78,15.97339602]
[1739674177876,0.03452024,193.84,193.82,5.1584]
[1739674179279,0.03452024,193.84,193.8,5.1589]
[1739674179777,0.03452024,193.84,193.78,1.6005]
[1739674181076,0.03452024,193.84,193.75,14.37289602]
[1739674181378,0.03452024,193.84,193.73,1.6484]
[1739674181677,14.37289602,193.85,193.73,1.6484]
[1739674181876,0.03853748,193.8,193.73,1.6484]
[1739674183079,0.03853748,193.8,193.76,5.16]
[1739674183472,0.03853748,193.8,193.77,5.1599]
[1739674184875,0.03853748,193.8,193.73,1.6484]
[1739674185380,0.03853748,193.8,193.78,5.1596]
[1739674186282,0.03853748,193.8,193.73,1.6484]
[1739674188083,0.03853748,193.8,193.78,5.1596]
[1739674189084,0.03853748,193.8,193.76,5.16]
[1739674200589,0.03853748,193.8,193.74,9.20509662]
[1739674200794,0.03853748,193.8,193.76,9.20509662]
[1739674201393,0.03853748,193.8,193.74,9.20509662]
[1739674201891,0.03853748,193.8,193.76,5.1602]
[1739674202693,0.03853748,193.8,193.75,5.1605]
[1739674203097,9.20509662,193.79,193.75,5.1605]
[1739674203798,9.20509662,193.79,193.76,5.1601]
[1739674203998,9.20509662,193.79,193.74,9.20509662]
[1739674204394,14.36459662,193.79,193.74,5.1607]
[1739674204589,9.20509662,193.79,193.74,5.1607]
[1739674206396,9.20509662,193.75,193.68,9.20509662]
[1739674206594,9.20509662,193.73,193.68,9.20509662]
[1739674206896,0.03717149,193.72,193.68,9.20509662]
[1739674208202,0.03717149,193.72,193.69,5.1618]
[1739674208594,0.03717149,193.72,193.68,9.20509662]
[1739674208799,0.03717149,193.72,193.67,5.1626]
[1739674209400,0.03717149,193.72,193.66,9.20509662]
[1739674209597,0.03717149,193.72,193.68,9.20509662]
[1739674210099,0.03717149,193.72,193.69,5.162]
[1739674210496,0.03717149,193.72,193.68,9.20509662]
[1739674210701,0.03717149,193.72,193.71,5.1615]